Cogmind - Beta 11 X7 *** ADVENTURER MODE // 2021.09.05 @ 00:00:24 // AFD2019/Pay2Buy Player: PhenomPhear Result: Self-destructed Performance ------------- Evolutions (1) 500 Regions Visited (3) 600 Robots Destroyed (28) 140 Value Destroyed (909) 909 Prototype IDs (3) 60 Alien Tech Used (0) 0 Bonus (8) 8 TOTAL SCORE: 2217 Bonus ------- High Alert Combat Kills 8 Cogmind --------- Core Integrity 343/400 Matter 300/300 Energy 200/200 System Corruption 0% Temperature Cool (72) Movement Hovering (240) Ox3 Location -9/Materials Parts ------- > --- POWER (1) -------- Cold Fusion Reactor > --- PROPULSION (2) --- Improved Hover Unit Xenon Bombardment Thruster > --- UTILITY (4) ------ Trap Scanner Trap Scanner Improved Targeting Computer > --- WEAPON (2) ------- Heavy Plasma Cannon Katana > --- INVENTORY (10) --- Light Ion Engine Enhanced Nuclear Core Heavy Particle Gun Advanced Assault Cannon EMP Blaster Rocket Launcher Mini Grenade Launcher Improved Grenade Launcher Peak State ------------ > --- POWER ------------ Cold Fusion Reactor > --- PROPULSION ------- Improved Hover Unit Xenon Bombardment Thruster > --- UTILITY ---------- Trap Scanner Trap Scanner Improved Targeting Computer > --- WEAPON ----------- Heavy Plasma Cannon Katana > --- INVENTORY -------- Light Ion Engine Enhanced Nuclear Core Heavy Particle Gun Advanced Assault Cannon EMP Blaster Rocket Launcher Mini Grenade Launcher Improved Grenade Launcher [Rating: 30] Favorites ----------- Power Light Ion Engine Engine Light Ion Engine Reactor Cold Fusion Reactor Propulsion Improved Hover Unit Hover Unit Improved Hover Unit Flight Unit Xenon Bombardment Thruster Utility Improved Targeting Computer Device Trap Scanner Processor Improved Targeting Computer Weapon Mini Grenade Launcher Energy Cannon Heavy Plasma Cannon Launcher Mini Grenade Launcher Slashing Weapon Katana Build | -11 -10 -10 -9 ------- Run | Scr Mat Min Mat Slots Evolved 2 | . . . 2 Power . | . . . . Propulsion . | . . . . Utility 2 | . . . 2 Weapon . | . . . . Parts Attached 3 | . . . 3 Power 1 | . . . 1 Engine . | . . . . Core . | . . . . Reactor 1 | . . . 1 Propulsion . | . . . . Treads . | . . . . Leg . | . . . . Wheel . | . . . . Hover . | . . . . Flight . | . . . . Utility . | . . . . Device . | . . . . Storage . | . . . . Processor . | . . . . Hackware . | . . . . Protection . | . . . . Artifact . | . . . . Weapon 2 | . . . 2 Energy Gun . | . . . . Energy Cannon 1 | . . . 1 Ballistic Gun . | . . . . Ballistic Cannon . | . . . . Launcher 1 | . . . 1 Special Weapon . | . . . . Impact Weapon . | . . . . Slashing Weapon . | . . . . Piercing Weapon . | . . . . Special Melee Weapon . | . . . . Unidentified Prototypes . | . . . . Parts Lost 1 | . . . 1 Power . | . . . . Propulsion 1 | . . . 1 Utility . | . . . . Weapon . | . . . . Highest Loss Streak 1 | . . . 1 Average Slot Usage (%) 84 | . 85 85 84 Engine 9 | . 14 14 2 Reactor 3 | . . . 8 Hover 21 | . 28 28 13 Flight 2 | . . . 6 Device 8 | . . . 20 Processor 12 | . 14 14 11 Energy Cannon 3 | . . . 8 Launcher 17 | . 28 28 3 Slashing Weapon 4 | . . . 10 Naked Turns . | . . . . Heaviest Build 27 | 8 8 8 27 Greatest Support 14 | 14 14 14 14 Greatest Overweight (x) 3 | . . . 3 Average Overweight (x) . | . . . 1 Largest Inventory Capacity 10 | 10 10 10 10 Average Capacity 10 | 10 10 10 10 Most Carried 8 | . . 1 8 Average Carried 2 | . . . 6 Final Capacity 10 | 10 10 10 10 Final Carried 8 | . . 1 8 Class Distribution -------------------- 100% | Mutant Dominant Class ---------------- Mutant | -10/Materials Mutant | -10/Mines Mutant | -9/Materials Resources | -11 -10 -10 -9 ----------- Run | Scr Mat Min Mat Matter Collected 529 | . 120 100 309 Remotely . | . . . . Salvage Created 922 | . 218 268 436 Parts . | . . . . Haulers Intercepted 2 | . 1 . 1 Recyclers Shooed . | . . . . Parts Field Recycled . | . . . . Retrieved Matter . | . . . . Parts Self-Destructed . | . . . . Prevented . | . . . . Kills | -11 -10 -10 -9 ------- Run | Scr Mat Min Mat Combat Hostiles Destroyed 36 | . 8 21 7 Melee 3 | . . . 3 Cannons 4 | . . . 4 AOE 29 | . 8 21 . Classes Destroyed 8 | . 4 2 2 Builder 1 | . . 1 . Hauler 2 | . 1 . 1 Watcher 4 | . 2 . 2 Swarmer 2 | . 2 . . Grunt 16 | . 6 6 4 Duelist 1 | . . . 1 Sentry 2 | . . . 2 Assembled 15 | . . 15 . Best Kill Streak 17 | . 4 17 4 Combat Bots Only 17 | . 4 17 2 Max Kills in Single Turn 5 | . 2 5 1 Gunslinging . | . . . . Exploded 5 | . 2 5 . Melee 1 | . . . 1 Uniques/NPCs Destroyed . | . . . . Combat | -11 -10 -10 -9 -------- Run | Scr Mat Min Mat Damage Taken 331 | . 37 37 257 Core 70 | . . 13 57 Absorbed by Shields . | . . . . Core Remaining (%) 97 | 100 . 94 . Volleys Fired 55 | . 16 18 21 Largest 1 | . 1 1 1 Hottest 90 | . 33 33 90 Shots Fired 55 | . 16 18 21 Gun . | . . . . Cannon 21 | . . . 21 Launcher 34 | . 16 18 . Special . | . . . . Kinetic . | . . . . Thermal 21 | . . . 21 Explosive 28 | . 14 14 . Electromagnetic 6 | . 2 4 . Robot Hit Streak 10 | . 7 3 10 Robot Miss Streak 2 | . 1 2 1 Penetration Max . | . . . . Secondary Targets . | . . . . Shots Hit Robots 42 | . 7 5 30 Core Hits 61 | . 14 38 9 Critical Kills 1 | . . . 1 Critical Parts Destroyed . | . . . . Critical Strikes 1 | . . . 1 Meltdown 1 | . . . 1 Melee Attacks 15 | . . . 15 Impact . | . . . . Slashing 15 | . . . 15 Piercing . | . . . . Sneak Attacks 1 | . . . 1 Combat Hostiles . | . . . . Follow-up Attacks . | . . . . Damage Inflicted 3313 | . 854 1409 1050 Guns . | . . . . Cannons 529 | . . . 529 Explosions 2263 | . 854 1409 . Melee 521 | . . . 521 Ramming . | . . . . Kinetic . | . . . . Thermal 529 | . . . 529 Explosive 2079 | . 783 1296 . Electromagnetic 184 | . 71 113 . Impact . | . . . . Slashing 521 | . . . 521 Piercing . | . . . . Highest Corruption . | . . . . Average Corruption . | . . . . Corruption Purged . | . . . . Overload Shots . | . . . . Overflow Damage 85 | . 13 36 36 Projectiles 23 | . . . 23 Explosions 49 | . 13 36 . Melee 13 | . . . 13 Knockbacks . | . . . . Impact . | . . . . Kinetic . | . . . . Secondary . | . . . . Self-Inflicted Damage . | . . . . Shots . | . . . . Rammed . | . . . . Targets Rammed . | . . . . Kicked . | . . . . Crushed . | . . . . Highest Temperature 235 | . 11 28 235 Average Temperature 77 | . 8 13 96 Received Heat Transfer 256 | . 24 49 183 Siege Activations . | . . . . Robots Corrupted . | . . . . Combat Hostiles . | . . . . Parts Fried . | . . . . Impact Corruptions . | . . . . Robots Melted 1 | . . . 1 Combat Hostiles . | . . . . Parts Melted . | . . . . Heat Transferred 800 | . . . 800 Parts Sabotaged . | . . . . Parts Stolen . | . . . . Parts Stripped . | . . . . Power Chain Reactions . | . . . . Missiles Intercepted . | . . . . Alert | -11 -10 -10 -9 ------- Run | Scr Mat Min Mat Peak Influence 414 | . 388 306 414 Initial 127 | . . 127 100 Average 247 | . 246 190 281 Maximum Alert Level 2 | . 1 1 2 Low Security (%) 37 | 100 33 68 23 Level 1 58 | . 66 31 66 Level 2 3 | . . . 9 Level 3 . | . . . . Level 4 . | . . . . Level 5 . | . . . . High Security . | . . . . Max Security . | . . . . Squads Dispatched 2 | . . . 2 Investigation . | . . . . Extermination . | . . . . Reinforcement 2 | . . . 2 Assault . | . . . . Garrison . | . . . . Intercept . | . . . . Construction Impeded . | . . . . Haulers Reinforced . | . . . . Active Scanning Responses . | . . . . Cargo Convoy Interrupts . | . . . . Stealth | -11 -10 -10 -9 --------- Run | Scr Mat Min Mat Distress Signals . | . . . . Communications Jammed . | . . . . Distress Signals . | . . . . Times Spotted 55 | . 17 23 15 Peak Tracking Total 10 | . 3 10 6 Tactical Retreats 7 | . 3 2 2 Traps | -11 -10 -10 -9 ------- Run | Scr Mat Min Mat Traps Triggered . | . . . . Indirectly . | . . . . Trap Hack Attempts . | . . . . Triggered . | . . . . Disarmed . | . . . . Reprogrammed . | . . . . Reused . | . . . . Traps Extracted . | . . . . Installed . | . . . . Triggered . | . . . . Machines | -11 -10 -10 -9 ---------- Run | Scr Mat Min Mat Machines Disabled 11 | . 7 1 3 Max in Single Turn 2 | . 2 1 2 Machines Sabotaged . | . . . . Garrisons Compromised . | . . . . Overloaded Fab Kills . | . . . . Fab Network Shutdowns . | . . . . Hacking | -11 -10 -10 -9 --------- Run | Scr Mat Min Mat Machines Accessed . | . . . . Terminals . | . . . . Fabricators . | . . . . Repair Stations . | . . . . Recycling Units . | . . . . Scanalyzers . | . . . . Garrison Access . | . . . . Total Hacks . | . . . . Successful . | . . . . Failed . | . . . . Catastrophic . | . . . . Database Lockouts . | . . . . Manual . | . . . . Terminals . | . . . . Fabricators . | . . . . Repair Stations . | . . . . Recycling Units . | . . . . Scanalyzers . | . . . . Garrison Access . | . . . . Terminal Hacks . | . . . . Fabricator Hacks . | . . . . Repair Station Hacks . | . . . . Recycling Unit Hacks . | . . . . Scanalyzer . | . . . . Garrison Access Hacks . | . . . . Unauthorized Hacks . | . . . . Terminals . | . . . . Fabricators . | . . . . Repair Stations . | . . . . Recycling Units . | . . . . Scanalyzers . | . . . . Garrison Access . | . . . . Data Cores Recovered . | . . . . Used . | . . . . Hacking Detections . | . . . . Full Trace Events . | . . . . Feedback Events . | . . . . Feedback Blocked . | . . . . Robot Schematics Acquired . | . . . . Robots Built . | . . . . Matter . | . . . . Time . | . . . . Total Robot Build Rating . | . . . . Part Schematics Acquired . | . . . . Parts Built . | . . . . Matter . | . . . . Time . | . . . . Total Part Build Rating . | . . . . Parts Repaired . | . . . . Time . | . . . . Parts Recycled . | . . . . Recycled Matter . | . . . . Retrieved Matter . | . . . . Retrieved Components . | . . . . Parts Scanalyzed . | . . . . Part Schematics Acquired . | . . . . Parts Damaged . | . . . . Bothacking | -11 -10 -10 -9 ------------ Run | Scr Mat Min Mat Used RIF Installer . | . . . . Robots Hacked . | . . . . Non-combat . | . . . . Combat . | . . . . Robot Hacks Applied . | . . . . Relay Couplers Released . | . . . . Robots Rewired . | . . . . Allies Hacked . | . . . . Hacks Repelled . | . . . . Allies | -11 -10 -10 -9 -------- Run | Scr Mat Min Mat Total Allies . | . . . . Largest Group . | . . . . Highest-Rated Group . | . . . . Highest-Rated Ally . | . . . . Total Orders . | . . . . Ally Attacks . | . . . . Total Damage . | . . . . Kills . | . . . . Allies Corrupted . | . . . . Allies Melted . | . . . . Intel | -11 -10 -10 -9 ------- Run | Scr Mat Min Mat Robot Analysis Total . | . . . . Derelict Logs Recovered . | . . . . Drone Launches . | . . . . Drone Recoveries . | . . . . Exploration | -11 -10 -10 -9 ------------- Run | Scr Mat Min Mat Turns Passed 1039 | 9 378 217 435 Spaces Moved 1143 | 18 618 312 195 Core 17 | 17 . . . Treads . | . . . . Legs . | . . . . Wheels . | . . . . Hover 1126 | 1 618 312 195 Flight . | . . . . Fastest Speed 50 | 50 56 56 56 Average Speed 75 | 50 56 56 173 Slowest Speed 240 | 56 56 56 240 Overloaded Moves . | . . . . Propulsion Burnouts . | . . . . Robots Hopped . | . . . . Cave-ins Triggered . | . . . . Exploration Rate (%) 47 | 4 88 74 23 Regions Visited 3 Branch Regions 1 Pre-discovered Areas . | . . . . Known Exits Taken . | . . . . Unknown Exits Taken 3 | 1 1 1 . Scrap Searched . | . . . . Spaces Dug . | . . . . Terrain Destroyed 278 | . 107 111 60 Melee . | . . . . Projectile 2 | . . . 2 AOE 276 | . 107 111 58 Terrain Rammed . | . . . . Walls Destroyed . | . . . . Machines Disabled . | . . . . Actions | -11 -10 -10 -9 --------- Run | Scr Mat Min Mat Total 1232 | 17 633 335 247 Wait 17 | . . 5 12 Move 1140 | 17 617 311 195 Hop . | . . . . Pick Up 1 | . . 1 . Fast Attach . | . . . . Attach . | . . . . Detach 1 | . . . 1 Swap 3 | . . . 3 Drop . | . . . . Fire 55 | . 16 18 21 Melee 15 | . . . 15 Ram . | . . . . Kick . | . . . . Crush . | . . . . Escape Stasis . | . . . . Rewire . | . . . . Trap . | . . . . Miscellaneous . | . . . . Route ------- -11/Scrapyard -10/Materials (discovered 5 exits: [*Mat x3] / [*Min x2]) -10/Mines -9/Materials History --------- Turn | Location | Event 3 | -11/Scrapyard | Discovered new exit (range 15) 10 | -11/Scrapyard | Entered Materials 132 | -10/Materials | Discovered new exit (range 11) 138 | -10/Materials | Discovered new exit (range 15) 184 | -10/Materials | Discovered new exit (range 11) 199 | -10/Materials | Discovered new exit (range 8) 263 | -10/Materials | Discovered new exit (range 8) 305 | -10/Materials | Build established: Mutant 388 | -10/Materials | Entered Mines 499 | -10/Mines | Assembled infested the area 502 | -10/Mines | Received a Rocket Launcher from a helpful Derelict 504 | -10/Mines | Assisted by a Guerilla fighting off Assembled 585 | -10/Mines | Discovered new exit (range 6) 588 | -10/Mines | Destroyed 17 combat bots 605 | -10/Mines | Entered Materials 605 | -9/Materials | Evolved 2 slots: Utility x2 1040 | -9/Materials | Self-destructed Last Messages --------------- 00892_ U-05 Engineer lays Concrete. 00895_ K-01 Serf collects debris. 00896_ U-05 Engineer lays Concrete. 00897_ K-01 Serf collects debris. 00897_ U-05 Engineer lays Concrete. 00898_ K-01 Serf collects debris. 00898_ U-05 Engineer builds a Door. 00901_ U-05 Engineer builds a Wall. 00902_ K-01 Serf collects debris. 00902_ U-05 Engineer builds a Wall. 00905_ K-01 Serf collects debris. 00910_ U-05 Engineer builds a Wall. 00965_ G-34 Mercenary destroyed. 00965_ U-05 Engineer builds a Wall. 00967_ A-02 Transporter destroyed. 00969_ ALERT: Hostiles spotted, dispatching reinforcements to Terminal M001. 00981_ Acquired 19 matter. 01017_ K-01 Serf cleans the Matter Filter. 01038_ Matter Filter disabled. Map ----- +----------------------------------------------------+ | ????????????# #?#########??????????????????????? | | ????????????# # #??????????????????????? | | ????????????# # #??????????????????????? | | ???######???# + "T" ???????????????????????? | | ???# ??# # """ ???????????????????????? | | ???# ??# ####################?????????????? | | ???# ?# % ????????????? | | ???# ?# ????????????? | | ???# # ???????????? | | ???# # % ????????????? | | ???# + ## t#######???????????????? | | ???# # ## #?????????????????????? | | ???# # ## t#?????????????????????? | | ???########## ## #?????????????????????? | | ????######## # #?????????????????????? | | ????# # #?????????????????????? | | ????# T # #?????????????????????? | | ????# # """ #?????????????????????? | | ????####+### # """ #?????????????????????? | | ????# ####### """ #?????????????????????? | | ????# #?????# """ #?????????????????????? | | ????# #?????# """ #############?????????? | | ????# #?????# T ?????????? | | ????# #?????# ????????? | | ????# #?????# o ????????? | | ????########?????# %@ #????????? | | ?????????????????# k""""% #????????? | | ?????????????????# """"" """ """ #????????? | | ?????????????????# """"" """""""?????????????? | | ?????????????????# """"" ""???????????????? | | ?????????????????# """"" ???????????????? | | ?????????????????#????""" ??????????????? | | ???????????????????????"" #########?????????????? | | ???????????????????????? #?????????????????????? | | ???????????????????????? #?????????????????????? | | ???????????????????????? #?????????????????????? | | ???????????????????????? #?????????????????????? | | ???????????????????????? #?????????????????????? | | ????????????????????????+##??????????????????????? | | ?????????????????????????????????????????????????? | | ?????????????????????????????????????????????????? | | ?????????????????????????????????????????????????? | | ?????????????????????????????????????????????????? | | ?????????????????????????????????????????????????? | | ?????????????????????????????????????????????????? | | ?????????????????????????????????????????????????? | | ?????????????????????????????????????????????????? | | ?????????????????????????????????????????????????? | | ?????????????????????????????????????????????????? | | ?????????????????????????????????????????????????? | +----------------------------------------------------+ Best States ------------- Heat Dissipation 28 Energy Generation 17 Energy Capacity 200 Matter Stores 300 Matter Capacity 300 Sight Range 16 Terrain Scan Density 10 Resistance: KI 20 Resistance: TH 20 Resistance: EX 20 Resistance: EM 20 Resistance: I 20 Resistance: S 20 Resistance: P 20 Evasion (%) 53 Targeting Accuracy 6 Offensive Hacking 10 Item Schematics ----------------- None Robot Schematics ------------------ None Fabricated ------------ Nothing Alien Tech Used ----------------- None Achievements -------------- None Challenges ------------ None Cogshop Purchases (16) ------------------------ Lgt. Ion Engine (599) Imp. Hover Unit (874) Imp. Hover Unit (874) Mni. Grenade Launcher (1049) EMP Blaster (1049) Imp. Targeting Computer (Loot Box) Trap Scanner (767) Imp. Grenade Launcher (1526) Katana (1296) Trap Scanner (Loot Box) Adv. Assault Cannon (Loot Box) Cold Fusion Reactor (Loot Box) Hvy. Plasma Cannon (Loot Box) Hvy. Particle Gun (Loot Box) Xenon Bombardment Thruster (Loot Box) Enh. Nuclear Core (Loot Box) Game ------ Seed LatentAntigravHumpback Manual? 0 Play Time 00:20:33 Cumulative 1101.7 hours Start 2021.09.04 @ 23:26:25 End 2021.09.05 @ 00:00:24 Sessions 1 Manual Loads 0 Difficulty Adventurer Special Mode AFD2019/Pay2Buy Game No. 701 Rogue 696 Adventurer 3 Explorer 2 Win Type - Total 18 Types 10/1/4/3/0/0/0/0/0 Lore% 89 Gallery% 91 Achievement% 81 Wizard Run 0 Options --------- ASCII 0 Keyboard 0 Movement Mouse Keybinds 0 Fullscreen 1 Font 24/Crisp Map View 76x50 Tactical HUD 1 Map Filters NONE Filters NONE Steam 1 RUN: 2163fbe8-4e3d-4a02-812e-d5c068169e22